bitfinex-derivatives/quotes_SOLF0:USTF0_20250624
["timestamp","ask_amount","ask_price","bid_price","bid_amount"]
[1750758469269,5.04297654,144.26,144.15,15.611499]
[1750758469470,5.04297654,144.28,144.15,7.0494]
[1750758469666,9.97099848,144.27,144.15,7.0494]
[1750758469972,5.04297654,144.26,144.15,7.0494]
[1750758470172,5.04297654,144.25,144.15,7.0494]
[1750758470473,5.04827216,144.24,144.15,7.0494]
[1750758470667,9.96766439,144.27,144.15,7.0494]
[1750758470864,5.04827216,144.26,144.15,7.0494]
[1750758471064,5.04827216,144.25,144.15,7.0494]
[1750758471273,5.04827216,144.24,144.15,7.0494]
[1750758471471,5.04827216,144.25,144.15,7.0494]
[1750758471672,5.04827216,144.24,144.15,7.0494]
[1750758471876,9.96766439,144.26,144.15,7.0494]
[1750758472072,5.04827216,144.25,144.15,7.0494]
[1750758472273,5.04827216,144.24,144.15,7.0494]
[1750758472477,9.96766439,144.26,144.15,7.0494]
[1750758472678,5.04827216,144.25,144.15,7.0494]
[1750758472977,5.04827216,144.24,144.15,7.0494]
[1750758473181,5.04827216,144.26,144.15,7.0494]
[1750758473370,5.04827216,144.25,144.15,7.0494]
[1750758473564,5.04827216,144.24,144.15,7.0494]
[1750758473766,5.04827216,144.26,144.15,7.0494]
[1750758473980,5.04827216,144.25,144.15,7.0494]
[1750758474169,5.04827216,144.24,144.15,7.0494]
[1750758474371,5.04827216,144.26,144.15,7.0494]
[1750758474572,5.04827216,144.25,144.15,7.0494]
[1750758474877,5.04827216,144.24,144.15,7.0494]
[1750758475172,5.04827216,144.23,144.15,7.0494]
[1750758475372,5.04827216,144.25,144.15,7.0494]
[1750758475578,5.04827216,144.24,144.15,7.0494]
[1750758475778,5.04827216,144.25,144.15,15.611499]
[1750758475977,9.94798276,144.28,144.15,15.611499]
[1750758476179,5.02123068,144.27,144.16,8.562099]
[1750758476372,4.92217004,144.29,144.17,8.562099]
[1750758476586,5.02050833,144.28,144.17,8.562099]
[1750758476773,5.02050833,144.27,144.17,8.562099]
[1750758476973,4.92217004,144.3,144.17,8.562099]
[1750758477176,9.94257131,144.29,144.17,8.562099]
[1750758477478,5.02040127,144.28,144.17,8.562099]
[1750758477674,5.02040127,144.27,144.17,8.562099]
[1750758477866,5.02040127,144.28,144.17,8.562099]
[1750758478071,5.02040127,144.27,144.17,8.562099]
[1750758478381,5.02130796,144.28,144.17,8.562099]
[1750758478577,5.02130796,144.27,144.17,8.562099]
[1750758478778,5.02130796,144.28,144.17,8.562099]
[1750758478981,5.02130796,144.27,144.17,8.562099]
[1750758479178,4.92217004,144.3,144.17,8.562099]
[1750758479379,9.95284063,144.29,144.17,8.562099]
[1750758479575,5.03067059,144.28,144.17,8.562099]
[1750758479774,5.03067059,144.27,144.17,8.562099]
[1750758479978,4.92217004,144.3,144.17,8.562099]
[1750758480177,9.95284063,144.29,144.17,8.562099]
[1750758480368,5.03067059,144.28,144.17,8.562099]
[1750758480574,5.03067059,144.27,144.17,8.562099]
[1750758480773,5.03172955,144.26,144.17,8.562099]
[1750758480979,4.92217004,144.28,144.17,8.562099]
[1750758480980,5.03172955,144.27,144.17,8.562099]
[1750758481178,4.92217004,144.3,144.17,8.562099]
[1750758481179,5.03172955,144.26,144.17,8.562099]
[1750758481377,9.95389959,144.28,144.17,8.562099]
[1750758481578,5.03172955,144.27,144.17,8.562099]
[1750758481879,5.03172955,144.26,144.17,8.562099]
[1750758482078,9.95159539,144.28,144.17,8.562099]
[1750758482279,5.03172955,144.27,144.17,8.562099]
[1750758482481,5.03172955,144.26,144.17,8.562099]
[1750758482783,4.92578274,144.28,144.17,8.562099]
[1750758482986,5.03183987,144.27,144.17,8.562099]
[1750758483183,4.92578274,144.29,144.18,8.562099]
[1750758483385,5.03176867,144.28,144.18,8.562099]
[1750758483585,5.03176867,144.27,144.18,8.562099]
[1750758483785,4.92578274,144.31,144.18,8.562099]
[1750758484095,9.95760274,144.3,144.18,8.562099]
[1750758484283,5.03182,144.29,144.18,8.562099]
[1750758484583,5.03182,144.28,144.18,8.562099]
[1750758484887,5.03182,144.27,144.18,8.562099]
[1750758485079,4.92534621,144.29,144.18,8.562099]
[1750758485281,5.03427051,144.28,144.18,8.562099]
[1750758485487,5.03427051,144.27,144.18,8.562099]
[1750758485782,4.92534621,144.29,144.18,8.562099]
[1750758485985,5.03427051,144.28,144.18,8.562099]
[1750758486186,5.03427051,144.27,144.18,8.562099]
[1750758486383,4.92534621,144.29,144.18,8.562099]
[1750758486585,5.03427051,144.28,144.18,8.562099]
[1750758486881,5.03427051,144.27,144.18,8.562099]
[1750758487086,4.92534621,144.29,144.18,8.562099]
[1750758487286,9.96966818,144.28,144.18,8.562099]
[1750758487487,5.03777707,144.27,144.18,8.562099]
[1750758487680,4.93189111,144.3,144.18,8.562099]
[1750758487882,5.03776321,144.29,144.2,8.562099]
[1750758488084,4.93189111,144.3,144.21,6.8136]
[1750758488284,5.03685763,144.29,144.21,6.8136]
[1750758488489,4.93189111,144.33,144.21,6.8136]
[1750758488690,9.96875086,144.32,144.21,6.8136]
[1750758488993,9.96875086,144.31,144.21,6.8136]
[1750758489292,9.96875086,144.3,144.21,6.8136]
[1750758489491,5.03685975,144.29,144.21,6.8136]
[1750758489789,4.93189111,144.32,144.21,15.375699]
[1750758489990,9.96971619,144.31,144.21,15.375699]
[1750758490289,5.03782508,144.3,144.21,6.8136]
[1750758490485,5.03782508,144.29,144.21,15.375699]
[1750758490685,4.93189111,144.31,144.21,15.375699]
[1750758490886,9.97319882,144.3,144.21,15.375699]
[1750758491091,5.04130771,144.29,144.21,15.375699]
[1750758491292,4.93189111,144.32,144.21,15.375699]
[1750758491489,9.97312225,144.31,144.21,15.375699]
[1750758491685,9.97312225,144.3,144.21,15.375699]
[1750758491888,5.04123114,144.29,144.21,15.375699]
[1750758492189,4.93189111,144.32,144.21,15.375699]
[1750758492392,9.97312226,144.31,144.21,15.375699]
[1750758492590,9.97312226,144.3,144.21,15.375699]
[1750758492790,5.04123115,144.29,144.21,15.375699]
[1750758492993,4.93250253,144.32,144.21,15.375699]
[1750758493290,9.97203873,144.31,144.21,15.375699]
[1750758493478,9.97203873,144.3,144.21,15.375699]
[1750758493797,5.0395362,144.29,144.21,15.375699]
[1750758493992,4.93250253,144.32,144.21,15.375699]
[1750758494289,9.97717133,144.31,144.21,15.375699]
[1750758494492,9.97717133,144.3,144.21,15.375699]
[1750758494684,5.0446688,144.29,144.21,15.375699]
[1750758494984,4.93250253,144.32,144.21,15.375699]
[1750758495186,9.98135866,144.31,144.21,15.375699]
[1750758495389,4.93250253,144.33,144.23,8.562099]
[1750758495588,9.98051841,144.32,144.23,8.562099]
[1750758495785,5.04771335,144.31,144.23,8.562099]
[1750758495986,4.93636307,144.35,144.23,8.562099]
[1750758496200,9.98407296,144.34,144.23,8.562099]
[1750758496392,5.04771156,144.33,144.24,8.562099]
[1750758496594,5.04771156,144.32,144.24,8.562099]
[1750758496785,36.27804005,144.38,144.24,8.562099]
[1750758496786,9.98407296,144.35,144.24,8.562099]
[1750758496985,9.98407296,144.34,144.24,8.562099]
[1750758497191,5.04771156,144.33,144.23,8.562099]
[1750758497383,4.9363614,144.36,144.24,8.562099]
[1750758497582,9.97544195,144.35,144.24,8.562099]
[1750758497896,5.03908055,144.34,144.24,8.562099]
[1750758498198,4.9363614,144.36,144.24,8.562099]
[1750758498390,5.03873826,144.35,144.24,8.562099]
[1750758498695,5.03873826,144.34,144.24,8.562099]
[1750758498899,8.54104005,144.4,144.24,8.562099]
[1750758498900,5.03873826,144.36,144.24,8.562099]
[1750758499098,9.97509966,144.38,144.25,8.562099]
[1750758499392,20.8,144.41,144.25,8.562099]
[1750758499393,5.03873826,144.37,144.25,8.562099]
[1750758499592,4.9363614,144.4,144.25,8.562099]
[1750758499593,5.03873826,144.36,144.25,8.562099]
[1750758499795,9.97509966,144.38,144.25,8.562099]
[1750758500096,5.03873826,144.37,144.25,8.562099]
[1750758500296,5.03873826,144.36,144.25,8.562099]
[1750758500590,5.03873826,144.38,144.25,8.562099]
[1750758500797,5.03873826,144.37,144.25,8.562099]
[1750758501093,5.03873826,144.36,144.25,8.562099]
[1750758501293,5.03873826,144.38,144.25,8.562099]
[1750758501488,5.05230715,144.37,144.25,8.562099]
[1750758501691,5.05230715,144.39,144.25,8.562099]
[1750758501888,5.05230715,144.38,144.25,8.562099]
[1750758502086,5.05230715,144.37,144.25,8.562099]
[1750758502289,9.98866855,144.4,144.25,8.562099]
[1750758502492,5.05230715,144.39,144.25,8.562099]
[1750758502693,5.05230715,144.38,144.25,8.562099]
[1750758502993,9.98866855,144.37,144.22,8.562099]
[1750758503182,5.05230715,144.36,144.22,8.562099]
[1750758503496,5.05230715,144.35,144.23,8.562099]
[1750758503797,9.98866855,144.37,144.22,8.562099]
[1750758504092,5.05230715,144.36,144.22,8.562099]
[1750758504296,5.05230715,144.35,144.22,8.562099]
[1750758504489,5.05230715,144.36,144.23,8.562099]
[1750758504688,5.05230715,144.35,144.22,8.562099]
[1750758504895,5.05230715,144.39,144.24,8.562099]
[1750758505092,5.05230715,144.38,144.25,8.562099]
[1750758505291,5.05230715,144.4,144.26,8.562099]
[1750758505597,5.05230715,144.39,144.27,6.8559]
[1750758505789,5.05230715,144.41,144.27,15.417999]
[1750758505984,5.05230715,144.4,144.27,15.417999]
[1750758506186,5.05230715,144.42,144.27,15.417999]
[1750758506495,5.05230715,144.41,144.27,15.417999]
[1750758506790,9.98646372,144.44,144.28,8.562099]
[1750758506988,9.96991627,144.44,144.29,8.562099]
[1750758507196,5.04802112,144.44,144.3,8.562099]
[1750758508198,122.50633603,144.45,144.3,8.562099]
[1750758508997,5.04679521,144.44,144.3,8.562099]
[1750758509297,5.04679521,144.44,144.29,8.562099]
[1750758509596,122.50633603,144.45,144.29,8.562099]
[1750758509996,5.03869192,144.44,144.29,8.562099]
[1750758510193,5.03869192,144.44,144.28,8.562099]
[1750758510994,5.03869192,144.44,144.27,15.417999]
[1750758511599,5.03869192,144.43,144.27,6.8559]
[1750758511791,4.92489931,144.44,144.27,6.8559]
[1750758511792,5.03869192,144.42,144.27,6.8559]
[1750758511998,5.03869192,144.43,144.27,6.8559]
[1750758512202,5.03869192,144.42,144.27,6.8559]
[1750758512392,5.03869192,144.41,144.27,6.8559]
[1750758512589,5.03869192,144.4,144.27,6.8559]
[1750758512790,5.03869192,144.39,144.27,6.8559]
[1750758512992,5.03869192,144.41,144.27,6.8559]
[1750758513191,5.03869192,144.4,144.27,6.8559]
[1750758513500,5.03869192,144.39,144.27,6.8559]
[1750758513702,25.83869192,144.41,144.27,6.8559]
[1750758513901,25.83869192,144.4,144.27,6.8559]
[1750758514109,5.03869192,144.39,144.27,6.8559]
[1750758515402,25.83843889,144.4,144.27,6.8559]
[1750758515602,5.03843889,144.39,144.27,6.8559]
[1750758516307,5.03990054,144.39,144.27,6.8559]
[1750758516505,5.03990054,144.38,144.27,6.8559]
[1750758516804,5.03990054,144.37,144.27,6.8559]
[1750758517003,9.96639464,144.39,144.27,6.8559]
[1750758517203,5.03990054,144.38,144.27,6.8559]
[1750758517401,5.03990054,144.37,144.27,6.8559]
[1750758517604,5.03990054,144.38,144.27,6.8559]
[1750758517806,5.03990054,144.37,144.27,6.8559]
[1750758518009,4.9264941,144.39,144.27,6.8559]
[1750758518010,5.03990054,144.38,144.27,6.8559]
[1750758518206,144.33144913,144.4,144.27,6.8559]
[1750758518402,30.75971185,144.39,144.2,8.562099]
[1750758518605,25.84233678,144.38,144.21,6.75]
[1750758518807,5.04387946,144.37,144.21,6.75]
[1750758520610,5.04387946,144.36,144.21,6.75]
[1750758520799,5.04387946,144.37,144.21,6.75]
[1750758521003,20.8,144.39,144.21,6.75]
[1750758521209,25.83831454,144.38,144.21,6.75]
[1750758521406,5.03831454,144.37,144.21,6.75]
[1750758521616,5.03831454,144.36,144.21,15.312099]
[1750758521802,5.03831454,144.37,144.21,15.312099]
[1750758522008,5.03831454,144.36,144.21,6.75]
[1750758522315,5.03831454,144.37,144.21,15.312099]
[1750758522614,5.03831454,144.36,144.21,15.312099]
[1750758522815,5.03831454,144.37,144.21,15.312099]
[1750758523113,5.03831454,144.36,144.21,15.312099]
[1750758523313,5.03831454,144.37,144.21,15.312099]
[1750758523512,5.03831454,144.36,144.21,15.312099]
[1750758523712,25.83831454,144.37,144.21,15.312099]
[1750758523916,20.8,144.37,144.21,15.312099]
[1750758524109,5.04007642,144.36,144.21,15.312099]
[1750758524804,5.04007642,144.39,144.25,8.562099]
[1750758525814,5.04007642,144.39,144.26,8.562099]
[1750758526016,123.53144913,144.4,144.27,4.7548]
[1750758526318,123.53144913,144.4,144.27,7.0851]
[1750758526617,123.53144913,144.4,144.27,15.647199]
[1750758527618,123.53144913,144.4,144.28,8.562099]
[1750758527821,123.53144913,144.4,144.27,15.647199]
[1750758528418,123.53144913,144.4,144.28,8.562099]
[1750758528617,123.53144913,144.4,144.29,8.562099]
[1750758529719,123.53144913,144.4,144.3,8.562099]
[1750758530117,123.53144913,144.4,144.29,8.562099]
[1750758533120,123.53144913,144.4,144.28,8.562099]
[1750758533816,5.06392765,144.39,144.27,7.0851]
[1750758535326,5.06601521,144.39,144.27,7.0851]
[1750758536126,9.98829015,144.39,144.27,7.0851]
[1750758536326,5.06601521,144.38,144.27,7.0851]
[1750758538128,5.06894504,144.38,144.27,7.0851]
[1750758538332,5.06894504,144.37,144.27,7.0851]
[1750758538534,5.06894504,144.36,144.27,7.0851]
[1750758538728,5.06894504,144.38,144.27,7.0851]
[1750758538936,5.06894504,144.37,144.27,7.0851]
[1750758539126,5.06894504,144.36,144.27,7.0851]
[1750758539325,5.06894504,144.38,144.27,7.0851]
[1750758539528,5.06894504,144.37,144.27,7.0851]
[1750758539727,5.06894504,144.36,144.27,7.0851]
[1750758539923,5.06894504,144.38,144.27,7.0851]
[1750758540127,5.06894504,144.37,144.27,7.0851]
[1750758540328,5.06894504,144.38,144.27,7.0851]
[1750758540530,5.06894504,144.37,144.27,7.0851]
[1750758540830,5.06894504,144.38,144.27,7.0851]
[1750758541025,5.06894504,144.37,144.27,7.0851]
[1750758541229,5.08428054,144.38,144.27,7.0851]
[1750758541430,5.08428054,144.37,144.27,7.0851]
[1750758541630,5.08428054,144.36,144.27,7.0851]
[1750758541830,5.08428054,144.38,144.27,7.0851]
[1750758542133,5.08428054,144.37,144.27,7.0851]
[1750758542437,5.08428054,144.36,144.27,7.0851]
[1750758542626,5.08428054,144.38,144.27,7.0851]
[1750758542830,5.08428054,144.37,144.27,7.0851]
[1750758543034,5.08428054,144.36,144.27,7.0851]
[1750758543232,5.08428054,144.38,144.27,7.0851]
[1750758543533,5.08428054,144.37,144.27,7.0851]
[1750758543737,5.08428054,144.36,144.27,7.0851]
[1750758543937,5.08428054,144.38,144.27,7.0851]
[1750758544141,5.08428054,144.37,144.27,7.0851]
[1750758544430,5.08428054,144.36,144.27,7.0851]
[1750758544630,5.08428054,144.38,144.27,7.0851]
[1750758544939,5.08428054,144.37,144.27,7.0851]
[1750758545140,5.08428054,144.36,144.27,7.0851]
[1750758545335,5.08428054,144.38,144.27,7.0851]
[1750758545535,5.08428054,144.37,144.27,7.0851]
[1750758545736,5.08428054,144.36,144.27,7.0851]
[1750758546037,5.08428054,144.38,144.27,7.0851]
[1750758546336,5.08418586,144.37,144.27,7.0851]
[1750758546642,5.08333477,144.38,144.27,7.0851]
[1750758546841,5.08333477,144.37,144.27,7.0851]
[1750758547037,5.08333477,144.38,144.28,8.562099]
[1750758547338,5.08333477,144.39,144.28,8.562099]
[1750758547543,5.08256832,144.39,144.28,8.562099]
[1750758547935,5.08256832,144.39,144.29,8.562099]
[1750758549142,123.53144913,144.4,144.29,8.562099]
[1750758549340,5.08871087,144.39,144.29,8.562099]
[1750758549938,123.53144913,144.4,144.29,8.562099]
[1750758550243,8.54104005,144.49,144.32,8.562099]
[1750758550437,10.01629555,144.48,144.33,6.7774]
[1750758550644,10.01629555,144.47,144.33,6.7774]
[1750758550844,10.01629555,144.46,144.33,6.7774]
[1750758551037,5.08599121,144.45,144.33,6.7774]
[1750758551338,5.08599121,144.47,144.33,15.339499]
[1750758551546,5.08397959,144.51,144.37,8.562099]
[1750758551741,4.93030434,144.55,144.39,8.562099]
[1750758551941,5.08197945,144.54,144.4,4.6499]
[1750758552142,5.08197945,144.53,144.4,6.9273]
[1750758552444,1.20475671,144.58,144.4,6.9273]
[1750758552445,10.01228379,144.52,144.4,6.9273]
[1750758552643,5.08197945,144.51,144.4,6.9273]
[1750758552941,10.01228379,144.55,144.4,6.9273]
[1750758553141,10.01228379,144.54,144.4,6.9273]
[1750758553336,5.08197945,144.53,144.4,6.9273]
[1750758553645,5.08197945,144.52,144.4,6.9273]
[1750758553835,5.08197945,144.51,144.4,6.9273]
[1750758554034,5.08197945,144.5,144.4,6.9273]
[1750758554235,5.08197945,144.53,144.4,6.9273]
[1750758554436,5.08197945,144.52,144.4,6.9273]
[1750758554643,5.08197945,144.51,144.4,6.9273]
[1750758554942,5.11463415,144.52,144.4,6.9273]
[1750758555150,5.11463415,144.51,144.4,6.9273]
[1750758555443,5.11463415,144.5,144.34,8.562099]
[1750758555638,25.91463415,144.53,144.35,6.9395]
[1750758555835,5.11463415,144.52,144.35,6.9395]
[1750758556036,5.11463415,144.51,144.35,6.9395]
[1750758556342,5.11463415,144.5,144.35,6.9395]
[1750758556641,5.11463415,144.52,144.35,6.9395]
[1750758556843,5.11463415,144.51,144.35,6.9395]
[1750758557148,5.11463415,144.5,144.35,6.9395]
[1750758557344,5.11463415,144.52,144.35,6.9395]
[1750758557639,20.8,144.53,144.35,6.9395]
[1750758557843,5.10790129,144.52,144.35,6.9395]
[1750758558047,5.10790129,144.51,144.35,6.9395]
[1750758558237,5.10790129,144.52,144.35,6.9395]
[1750758558746,25.90790129,144.53,144.35,6.9395]
[1750758558944,5.10790129,144.52,144.35,6.9395]
[1750758560547,20.8,144.53,144.35,6.9395]
[1750758560746,5.09453414,144.52,144.35,6.9395]
[1750758560947,25.89453414,144.53,144.35,6.9395]
[1750758561144,5.09453414,144.53,144.35,6.9395]
[1750758563349,27.737,144.54,144.35,6.9395]
[1750758563543,25.86346324,144.53,144.35,6.9395]
[1750758563743,20.8,144.53,144.35,6.9395]
[1750758564039,25.86346324,144.53,144.35,6.9395]
[1750758564238,20.8,144.53,144.35,6.9395]
[1750758564452,25.86346324,144.53,144.35,6.9395]
[1750758564652,20.8,144.53,144.35,6.9395]
[1750758564854,25.86346324,144.53,144.35,6.9395]
[1750758565049,20.8,144.53,144.35,6.9395]
[1750758565351,25.86346324,144.53,144.35,6.9395]
[1750758565552,20.8,144.53,144.35,6.9395]
[1750758565751,25.86346324,144.53,144.35,6.9395]
[1750758565953,20.8,144.53,144.35,6.9395]
[1750758566157,25.86346324,144.53,144.35,6.9395]
[1750758566458,25.86343261,144.54,144.35,6.9395]
[1750758566656,25.86343261,144.53,144.35,6.9395]
[1750758566852,20.8,144.53,144.35,6.9395]
[1750758567052,25.86329506,144.53,144.35,6.9395]
[1750758567250,20.8,144.53,144.35,6.9395]
[1750758567757,25.86329506,144.53,144.35,6.9395]
[1750758567953,5.06329506,144.52,144.35,6.9395]
[1750758568154,25.86329506,144.53,144.35,6.9395]
[1750758568456,5.06385963,144.52,144.35,6.9395]
[1750758569249,25.86370192,144.53,144.35,6.9395]
[1750758569458,25.86370192,144.52,144.35,6.9395]
[1750758569653,5.06370192,144.51,144.35,6.9395]
[1750758569849,20.8,144.52,144.35,6.9395]
[1750758570054,25.86370192,144.52,144.35,6.9395]
[1750758570352,20.8,144.52,144.35,6.9395]
[1750758570655,25.86370192,144.53,144.35,6.9395]
[1750758570861,20.8,144.51,144.35,6.9395]
[1750758571158,20.8,144.49,144.35,6.9395]
[1750758571363,25.86370192,144.49,144.35,6.9395]
[1750758571556,5.06370192,144.48,144.35,6.9395]
[1750758571852,5.06370192,144.47,144.35,6.9395]
[1750758572056,5.06370192,144.48,144.35,6.9395]
[1750758572251,25.86756086,144.49,144.35,6.9395]
[1750758572452,5.06756086,144.48,144.35,6.9395]
[1750758572954,5.06756086,144.47,144.35,6.9395]
[1750758573256,5.06756086,144.48,144.35,6.9395]
[1750758573460,5.06756086,144.47,144.35,6.9395]
[1750758573661,5.06756086,144.46,144.35,4.574]
[1750758573961,6.937,144.53,144.31,2.4178]
[1750758573962,30.81142299,144.49,144.31,2.4178]
[1750758574258,20.8,144.47,144.31,4.6563]
[1750758574461,25.86756086,144.46,144.31,4.6563]
[1750758574660,25.86756086,144.45,144.31,4.6563]
[1750758574863,5.06756086,144.44,144.31,4.6563]
[1750758575058,25.85703409,144.44,144.26,8.562099]
[1750758575253,20.8,144.44,144.27,6.8465]
[1750758575459,25.85703409,144.43,144.27,6.8465]
[1750758575659,20.8,144.43,144.27,6.8465]
[1750758575857,5.05703409,144.42,144.27,6.8465]
[1750758576250,20.8,144.43,144.27,6.8465]
[1750758576755,20.8,144.45,144.27,6.8465]
[1750758576953,5.05703409,144.44,144.27,6.8465]
[1750758577264,25.85703409,144.45,144.27,6.8465]
[1750758577562,5.05703409,144.44,144.27,6.8465]
[1750758578072,5.05614301,144.44,144.27,6.8465]
[1750758578256,25.85614301,144.45,144.27,6.8465]
[1750758578550,5.05614301,144.44,144.27,6.8465]
[1750758578957,5.05614301,144.45,144.27,6.8465]
[1750758579151,5.05614301,144.44,144.27,6.8465]
[1750758579457,25.85614301,144.46,144.27,6.8465]
[1750758579662,5.05614301,144.45,144.27,6.8465]
[1750758579961,5.05614301,144.44,144.27,6.8465]
[1750758580260,5.05614301,144.45,144.27,15.408599]
[1750758580653,20.8,144.48,144.28,8.562099]
[1750758580856,5.04107983,144.47,144.29,8.562099]
[1750758581153,5.04107983,144.47,144.27,19.6896485]
[1750758581154,5.04107983,144.47,144.3,8.562099]
[1750758581356,5.04107983,144.49,144.3,8.562099]
[1750758581667,5.04107983,144.48,144.3,8.562099]
[1750758581964,5.04107983,144.49,144.3,8.562099]
[1750758582159,5.04107983,144.48,144.3,8.562099]
[1750758582361,5.04107983,144.49,144.3,8.562099]
[1750758582564,5.04107983,144.48,144.3,8.562099]
[1750758582763,5.04107983,144.49,144.3,8.562099]
[1750758582963,5.04107983,144.48,144.3,8.562099]
[1750758583163,5.04107983,144.49,144.31,8.562099]
[1750758583368,5.04107983,144.48,144.31,8.562099]
[1750758583570,20.8,144.48,144.31,8.562099]
[1750758583759,25.84226761,144.48,144.31,8.562099]
[1750758584067,5.04226761,144.47,144.31,8.562099]
[1750758584266,5.05483004,144.47,144.31,8.562099]
[1750758584770,20.8,144.48,144.31,8.562099]
[1750758585067,25.85483004,144.48,144.31,8.562099]
[1750758585261,20.8,144.48,144.31,8.562099]
[1750758585663,25.85483004,144.48,144.31,8.562099]
[1750758585869,20.8,144.49,144.31,8.562099]
[1750758586057,25.85483004,144.48,144.31,8.562099]
[1750758586257,5.05483004,144.47,144.31,8.562099]
[1750758586462,20.8,144.48,144.31,8.562099]
[1750758586670,5.05643935,144.47,144.31,8.562099]
[1750758586869,20.8,144.48,144.31,8.562099]
[1750758587070,5.05774654,144.47,144.31,8.562099]
[1750758587271,25.85774654,144.48,144.31,8.562099]
[1750758587467,5.05774654,144.47,144.31,8.562099]
[1750758588465,5.05774654,144.46,144.31,8.562099]
[1750758588667,25.85774654,144.48,144.31,8.562099]
[1750758588866,5.05774654,144.47,144.31,8.562099]
[1750758589070,5.05774654,144.46,144.31,8.562099]
[1750758589373,5.06485922,144.45,144.32,8.562099]
[1750758589575,5.06485922,144.47,144.33,4.3904]
[1750758589777,5.06485922,144.46,144.33,4.3904]
[1750758589968,5.06485922,144.45,144.33,4.3904]
[1750758590169,5.06485922,144.47,144.33,4.3904]
[1750758590375,5.06485922,144.46,144.33,4.3904]
[1750758590576,5.06485922,144.45,144.33,4.3904]
[1750758590882,5.06485922,144.47,144.33,4.3904]
[1750758591071,5.06485922,144.46,144.33,4.3904]
[1750758591273,5.06485922,144.45,144.33,4.3904]
[1750758591478,5.06485922,144.44,144.33,4.3904]
[1750758591677,5.06485922,144.46,144.33,4.3904]
[1750758591875,5.06485922,144.45,144.33,4.3904]
[1750758592081,5.06485922,144.44,144.33,4.3904]
[1750758592380,5.09576135,144.46,144.33,4.3904]
[1750758592579,5.09576135,144.45,144.33,6.6508]
[1750758592784,5.09576135,144.44,144.33,6.6508]
[1750758592981,5.09576135,144.46,144.33,6.6508]
[1750758593178,4.94994993,144.47,144.33,6.6508]
[1750758593179,5.09576135,144.45,144.33,6.6508]
[1750758593377,5.09576135,144.44,144.33,6.6508]
[1750758593579,5.09576135,144.46,144.33,6.6508]
[1750758593772,5.09576135,144.45,144.33,6.6508]
[1750758594073,5.09576135,144.44,144.33,6.6508]
[1750758594371,4.94994993,144.47,144.33,15.212899]
[1750758594571,5.10140031,144.46,144.33,15.212899]
[1750758594778,5.10140031,144.45,144.33,15.212899]
[1750758594980,5.10140031,144.44,144.33,15.212899]
[1750758595185,4.95289964,144.47,144.33,15.212899]
[1750758595482,10.05493748,144.46,144.33,15.212899]
[1750758595780,5.10203784,144.45,144.33,15.212899]
[1750758595980,5.10203784,144.44,144.33,15.212899]
[1750758596181,25.75289964,144.47,144.33,15.212899]
[1750758596382,10.05493543,144.46,144.33,15.212899]
[1750758596690,5.10203579,144.45,144.33,15.212899]
[1750758596982,5.10203579,144.44,144.33,15.212899]
[1750758597181,4.95289964,144.46,144.33,15.212899]
[1750758597382,5.10272165,144.45,144.33,15.212899]
[1750758597580,5.10272165,144.44,144.33,15.212899]
[1750758597777,5.10327266,144.43,144.33,15.212899]
[1750758597978,5.10327266,144.45,144.33,15.212899]
[1750758598178,5.10327266,144.44,144.33,15.212899]
[1750758598372,5.10327266,144.43,144.33,15.212899]
[1750758598576,5.10327266,144.45,144.33,15.212899]
[1750758598784,5.10327266,144.44,144.33,15.212899]
[1750758598979,5.10327266,144.43,144.33,15.212899]
[1750758599178,5.10327266,144.45,144.33,15.212899]
[1750758599384,5.10327266,144.44,144.33,15.212899]
[1750758599577,5.10327266,144.43,144.33,15.212899]
[1750758599879,5.10327266,144.45,144.33,15.212899]
[1750758600179,5.10327266,144.44,144.33,15.212899]
[1750758600369,5.10327266,144.43,144.33,15.212899]
[1750758600571,10.0573711,144.46,144.33,15.212899]
[1750758600775,5.10327266,144.45,144.33,15.212899]
[1750758601073,5.10327266,144.44,144.33,15.212899]
[1750758601272,5.10327266,144.43,144.33,15.212899]
[1750758601483,5.10327266,144.45,144.33,15.212899]
[1750758601781,5.10327266,144.44,144.33,15.212899]
[1750758601985,5.10327266,144.43,144.33,15.212899]
[1750758602175,5.10327266,144.45,144.33,15.212899]